bitfinex/quotes_BTCUSD_20250414
["timestamp","ask_amount","ask_price","bid_price","bid_amount"]
[1744629376736,0.24293227,84767.0,84766.0,0.01927201]
[1744629377326,0.24393227,84767.0,84766.0,0.01941045]
[1744629377948,0.58393227,84767.0,84766.0,0.01941045]
[1744629378125,0.58393227,84767.0,84766.0,0.00098224]
[1744629378531,0.34799227,84767.0,84766.0,0.00098224]
[1744629378731,0.00799227,84767.0,84766.0,0.00098224]
[1744629378944,0.00799227,84767.0,84766.0,0.28552524]
[1744629379071,0.003,84767.0,84766.0,0.28552524]
[1744629379274,0.003,84767.0,84766.0,0.40636678]
[1744629379534,0.001,84767.0,84766.0,0.40636678]
[1744629380049,0.247673,84789.0,84785.0,0.011794]
[1744629380254,0.24769,84783.0,84779.0,0.011795]
[1744629380571,0.011795,84781.0,84778.0,0.247704]
[1744629380979,0.011795,84776.0,84772.0,0.011796]
[1744629381172,0.011795,84776.0,84773.0,0.011796]
[1744629381582,0.011795,84781.0,84774.0,0.247715]
[1744629381583,0.247702,84779.0,84774.0,0.247715]
[1744629381781,0.247705,84778.0,84775.0,0.011795]
[1744629382032,0.00669624,84778.0,84776.0,0.235914]
[1744629382448,0.34,84787.0,84786.0,0.235888]
[1744629382598,0.575887,84787.0,84784.0,0.011794]
[1744629382805,0.235888,84786.0,84784.0,0.011794]
[1744629383647,0.011794,84785.0,84782.0,0.011794]
[1744629383838,0.247686,84785.0,84782.0,0.011794]
[1744629384048,0.247686,84785.0,84782.0,0.247692]
[1744629384450,0.247686,84785.0,84782.0,0.011794]
[1744629385113,0.248686,84785.0,84782.0,0.011794]
[1744629385455,0.247689,84784.0,84780.0,0.011795]
[1744629385661,0.247689,84784.0,84777.0,0.247707]
[1744629385662,0.011795,84780.0,84777.0,0.247707]
[1744629385883,0.001,84785.0,84782.0,0.011794]
[1744629386095,0.002,84785.0,84783.0,0.235896]
[1744629386294,0.247684,84785.0,84782.0,0.011794]
[1744629386489,0.235894,84784.0,84782.0,0.0073695]
[1744629386792,0.25448282,84783.0,84779.0,0.235906]
[1744629386993,0.235903,84781.0,84778.0,0.0191645]
[1744629387192,0.24267244,84780.0,84779.0,0.0073695]
[1744629388042,0.235907,84779.0,84778.0,0.01663606]
[1744629388271,0.24266665,84779.0,84778.0,0.01663606]
[1744629388743,0.24266665,84779.0,84778.0,0.00926656]
[1744629388947,0.00675965,84779.0,84778.0,0.00926656]
[1744629389158,0.00675965,84779.0,84778.0,0.24517656]
[1744629389361,0.00675965,84779.0,84778.0,0.2432795]
[1744629389581,0.247697,84781.0,84778.0,0.0073695]
[1744629389755,0.00675965,84779.0,84777.0,0.24517756]
[1744629389967,0.011795,84781.0,84779.0,0.235907]
[1744629390157,0.247698,84781.0,84778.0,0.24517656]
[1744629390362,0.247698,84781.0,84780.0,0.00736961]
[1744629391185,0.247698,84781.0,84780.0,0.01663617]
[1744629391936,0.248698,84781.0,84780.0,0.01663617]
[1744629392165,0.588698,84781.0,84780.0,0.01663617]
[1744629392365,0.70853954,84781.0,84780.0,0.00736961]
[1744629392537,0.70953954,84781.0,84780.0,0.00736961]
[1744629392968,0.235935,84769.0,84768.0,0.00926656]
[1744629393492,0.247731,84769.0,84766.0,0.00098224]
[1744629393869,0.235938,84768.0,84767.0,0.00737072]
[1744629394068,0.235938,84768.0,84767.0,0.01665439]
[1744629395774,0.235938,84768.0,84767.0,0.01765439]
[1744629396852,0.011796,84769.0,84767.0,0.01765439]
[1744629397053,0.235938,84768.0,84767.0,0.01765439]
[1744629399077,0.235938,84768.0,84767.0,0.01665439]
[1744629399322,0.235938,84768.0,84767.0,0.01765439]
[1744629399718,0.235938,84768.0,84767.0,0.01665439]
[1744629399926,0.235938,84768.0,84767.0,0.01765156]
[1744629400171,0.235938,84770.0,84767.0,0.01765156]
[1744629400399,0.235936,84769.0,84767.0,0.01765156]
[1744629400859,0.235936,84769.0,84768.0,0.01665156]
[1744629401712,0.24261751,84769.0,84768.0,0.01665156]
[1744629402844,0.00668151,84769.0,84768.0,0.01665156]
[1744629403903,0.00668151,84769.0,84768.0,0.25258956]
[1744629404105,0.00668151,84769.0,84768.0,0.29858956]
[1744629404323,0.34,84774.0,84769.0,0.011796]
[1744629404523,0.24771,84776.0,84772.0,0.011796]
[1744629404524,0.247713,84775.0,84772.0,0.011796]
[1744629404777,0.247713,84775.0,84771.0,0.247725]
[1744629404944,0.247713,84775.0,84772.0,0.00928084]
[1744629405159,0.235924,84773.0,84772.0,0.00928084]
[1744629405729,0.235924,84773.0,84772.0,0.01665135]
[1744629406619,0.235924,84773.0,84772.0,0.00737051]
[1744629406976,0.236924,84773.0,84772.0,0.00737051]
[1744629407562,0.236924,84773.0,84772.0,0.01665135]
[1744629409072,0.576924,84773.0,84772.0,0.01665135]
[1744629409280,0.69776554,84773.0,84772.0,0.01665135]
[1744629410566,0.74416554,84773.0,84772.0,0.01665135]
[1744629411829,0.74316554,84773.0,84772.0,0.01665135]
[1744629412042,0.74516554,84773.0,84772.0,0.01665135]
[1744629412501,0.74216554,84773.0,84772.0,0.00928084]
[1744629412744,0.57594,84767.0,84766.0,0.00098224]
[1744629413189,0.86250154,84767.0,84766.0,0.00098224]
[1744629413537,0.92394239,84767.0,84766.0,0.00098224]
[1744629413926,1.34244239,84767.0,84766.0,0.00098224]
[1744629415187,1.34644239,84767.0,84766.0,0.00098224]
[1744629415370,1.18072239,84767.0,84766.0,0.00098224]
[1744629415699,1.34444239,84767.0,84766.0,0.00098224]
[1744629415902,0.35454085,84766.0,84765.0,4e-08]
[1744629416229,0.52488239,84766.0,84765.0,4e-08]
[1744629416434,0.94138239,84766.0,84765.0,4e-08]
[1744629416634,1.02333794,84766.0,84765.0,4e-08]
[1744629416806,1.02333794,84766.0,84741.0,0.002]
[1744629416807,0.575996,84747.0,84741.0,0.002]
[1744629417043,1.34705754,84747.0,84746.0,0.00092004]
[1744629418003,1.37029228,84747.0,84746.0,0.00092004]
[1744629419587,1.37229228,84747.0,84746.0,0.00092004]
[1744629419788,1.37429228,84747.0,84746.0,0.00092004]
[1744629420295,1.35579228,84747.0,84746.0,0.00092004]
[1744629420622,1.17553143,84747.0,84746.0,0.00092004]
[1744629420818,1.34117143,84747.0,84746.0,0.00092004]
[1744629421515,1.17082989,84747.0,84746.0,0.00092004]
[1744629421724,1.00518989,84747.0,84746.0,0.00092004]
[1744629421877,0.58868989,84747.0,84746.0,0.00092004]
[1744629422282,0.24868989,84747.0,84746.0,0.00092004]
[1744629422826,0.24668989,84747.0,84746.0,0.00092004]
[1744629423032,0.413422,84752.0,84746.0,0.23691804]
[1744629423230,0.002,84747.0,84746.0,0.00092004]
[1744629423432,0.237996,84747.0,84746.0,0.00092004]
[1744629424092,0.236996,84747.0,84746.0,0.00092004]
[1744629424755,0.82039827,84747.0,84746.0,0.00092004]
[1744629425188,0.70682164,84747.0,84746.0,0.00092004]
[1744629425357,0.70682164,84747.0,84746.0,0.04742004]
[1744629425358,0.576996,84747.0,84746.0,0.04742004]
[1744629426222,0.577996,84747.0,84746.0,0.04742004]
[1744629426610,0.237996,84747.0,84746.0,0.04742004]
[1744629427703,0.002,84747.0,84746.0,0.04742004]
[1744629428061,0.002,84747.0,84746.0,0.28341904]
[1744629429087,0.011799,84749.0,84746.0,0.04742004]
[1744629429299,0.011799,84749.0,84746.0,0.28341804]
[1744629429498,0.001,84747.0,84746.0,0.04742004]
[1744629429902,0.235993,84748.0,84746.0,0.04742004]
[1744629430135,0.247792,84749.0,84746.0,0.28341904]
[1744629430353,0.001,84749.0,84747.0,0.235995]
[1744629430767,0.001,84749.0,84746.0,0.29521704]
[1744629430768,0.001,84749.0,84748.0,0.235993]
[1744629430966,0.34,84763.0,84762.0,0.0476]
[1744629431167,0.4165,84764.0,84762.0,0.0476]
[1744629431391,0.011797,84765.0,84762.0,0.0476]
[1744629431676,0.235952,84763.0,84762.0,0.0476]
[1744629432945,0.236952,84763.0,84762.0,0.0476]
[1744629433591,0.24776,84760.0,84757.0,0.011798]
[1744629433794,0.011798,84760.0,84757.0,0.011798]
[1744629433992,0.247761,84759.0,84756.0,0.057598]
[1744629434216,0.235968,84757.0,84756.0,0.0458]
[1744629435189,0.247762,84759.0,84756.0,0.282771]
[1744629435336,0.235967,84758.0,84756.0,0.0458]
[1744629435543,0.235967,84758.0,84756.0,0.0468]
[1744629435926,0.235968,84757.0,84756.0,0.0468]
[1744629436370,0.235968,84757.0,84756.0,0.0458]
[1744629436745,0.235968,84757.0,84756.0,0.0468]
[1744629437371,0.235965,84758.0,84756.0,0.058598]
[1744629437569,0.247766,84759.0,84756.0,0.0468]
[1744629437790,0.235968,84758.0,84756.0,0.0468]
[1744629438527,0.235968,84757.0,84756.0,0.0468]
[1744629438714,0.235968,84758.0,84756.0,0.0458]
[1744629438915,0.177436,84769.0,84764.0,0.235948]
[1744629439118,0.235951,84764.0,84758.0,0.011798]
[1744629439330,0.011798,84759.0,84756.0,0.058598]
[1744629439532,0.011798,84760.0,84757.0,0.011798]
[1744629439747,0.011798,84760.0,84758.0,0.235965]
[1744629440233,0.235968,84757.0,84756.0,0.0468]
[1744629440461,0.235968,84757.0,84756.0,0.002]
[1744629441281,0.575968,84757.0,84756.0,0.002]
[1744629441477,0.69680954,84757.0,84756.0,0.002]
[1744629441886,0.72661085,84757.0,84756.0,0.002]
[1744629442024,0.71135039,84757.0,84756.0,0.002]
[1744629442261,0.235996,84747.0,84738.0,0.049444]
[1744629443968,0.235996,84747.0,84746.0,0.00392004]
[1744629447685,0.69683754,84747.0,84746.0,0.00392004]
[1744629448055,1.29750687,84747.0,84746.0,0.00392004]
[1744629448484,1.17677839,84747.0,84746.0,0.00392004]
[1744629448709,1.17677839,84747.0,84746.0,0.00092004]
[1744629448967,1.16323754,84747.0,84746.0,0.00092004]
[1744629449169,1.32879754,84747.0,84746.0,0.00092004]
[1744629449628,1.32779754,84747.0,84746.0,0.00092004]
[1744629449877,1.32979754,84747.0,84746.0,0.00092004]
[1744629450133,1.33279754,84747.0,84746.0,0.00092004]
[1744629450796,1.30592576,84747.0,84746.0,0.00092004]
[1744629451031,1.01952422,84747.0,84746.0,0.00092004]
[1744629451427,0.997496,84747.0,84746.0,0.00092004]
[1744629455112,0.345,84747.0,84746.0,0.00092004]
[1744629455339,0.005,84747.0,84746.0,0.05052004]
[1744629456425,0.003,84747.0,84746.0,0.05052004]
[1744629456639,0.235995,84748.0,84746.0,0.05052004]
[1744629456840,0.002,84747.0,84746.0,0.05052004]
[1744629457098,0.004,84747.0,84746.0,0.05052004]
[1744629458400,0.002,84747.0,84746.0,0.05052004]
[1744629459520,0.004,84747.0,84746.0,0.05052004]
[1744629460253,0.002,84747.0,84746.0,0.05052004]
[1744629460452,0.004,84747.0,84746.0,0.05052004]
[1744629460658,0.004,84747.0,84746.0,0.2209216]
[1744629460876,0.235922,84774.0,84773.0,0.0473]
[1744629462622,0.239922,84774.0,84773.0,0.0473]
[1744629463580,0.004,84774.0,84773.0,0.0473]
[1744629464592,0.002,84774.0,84773.0,0.0473]
[1744629464924,0.23592,84775.0,84773.0,0.0473]
[1744629465130,0.23592,84775.0,84773.0,0.0483]
[1744629465531,0.23592,84775.0,84773.0,0.0473]
[1744629465732,0.23592,84775.0,84773.0,0.0483]
[1744629465939,0.23592,84775.0,84773.0,0.0473]
[1744629466277,0.23592,84775.0,84773.0,0.0483]
[1744629468323,0.235921,84774.0,84773.0,0.0483]
[1744629469316,0.235921,84774.0,84773.0,0.0473]
[1744629475941,0.16556,84789.0,84781.0,0.011795]
[1744629476143,0.34,84788.0,84786.0,0.247676]
[1744629476370,0.34,84788.0,84785.0,0.235889]
[1744629476569,0.018478,84787.0,84781.0,0.011795]
[1744629476760,0.24769,84783.0,84779.0,0.011795]
[1744629476955,0.011794,84783.0,84780.0,0.247699]
[1744629477273,0.235904,84780.0,84776.0,0.011795]
[1744629477469,0.011795,84781.0,84778.0,0.011795]
[1744629477675,0.00667269,84779.0,84778.0,0.011795]
[1744629477833,0.247693,84782.0,84778.0,0.011795]
[1744629478023,0.00667269,84779.0,84778.0,0.011795]
[1744629478225,0.00667269,84779.0,84778.0,0.295303]
[1744629478443,0.247681,84787.0,84783.0,0.061394]
[1744629478625,0.235889,84786.0,84783.0,0.061394]
[1744629478851,0.25441024,84786.0,84783.0,0.061394]
[1744629479389,0.00672724,84786.0,84783.0,0.297288]
[1744629479584,0.24261524,84786.0,84783.0,0.061394]
[1744629479792,0.25440924,84786.0,84783.0,0.061394]
[1744629480485,0.00672724,84786.0,84784.0,0.235891]
[1744629480678,0.00672724,84786.0,84785.0,0.0465]
[1744629480885,0.0004224,84799.0,84798.0,0.235854]
[1744629481067,0.0004224,84799.0,84798.0,0.282354]
[1744629481280,0.00056073,84799.0,84798.0,0.282354]
[1744629481440,0.00731988,84799.0,84798.0,0.282354]
[1744629481658,0.00056073,84799.0,84798.0,0.0465]
[1744629481863,0.00731988,84799.0,84798.0,0.0465]
[1744629484079,0.00831988,84799.0,84798.0,0.0465]
[1744629485069,0.00831988,84799.0,84798.0,0.21739982]
[1744629485269,0.00156073,84799.0,84798.0,0.21739982]
[1744629485704,0.00156073,84799.0,84798.0,0.22476603]
[1744629485898,0.00156073,84799.0,84798.0,0.39016582]
[1744629486142,0.00156073,84799.0,84798.0,0.38780775]
[1744629486859,3.8e-07,84801.0,84799.0,0.235851]
[1744629487075,0.00046165,84801.0,84800.0,0.21869928]
[1744629487299,0.00046165,84801.0,84800.0,0.22606549]
[1744629487749,0.00046165,84801.0,84800.0,0.22370775]
[1744629488180,0.00046165,84801.0,84800.0,0.38906775]
[1744629488346,0.0004224,84808.0,84807.0,0.235829]
[1744629488521,9e-07,84809.0,84808.0,0.0954]
[1744629488928,9e-07,84809.0,84808.0,0.10276621]
[1744629489358,9e-07,84809.0,84808.0,0.22360775]
[1744629489926,9e-07,84809.0,84808.0,0.41143273]
[1744629490341,9e-07,84809.0,84808.0,0.41643273]
[1744629490538,9e-07,84809.0,84808.0,0.23771273]
[1744629490939,9e-07,84809.0,84808.0,0.24471273]
[1744629492209,9e-07,84809.0,84808.0,0.66341273]
[1744629496079,9e-07,84809.0,84808.0,0.67795358]
[1744629497041,9e-07,84809.0,84808.0,0.67295358]
[1744629497277,9e-07,84809.0,84808.0,0.67095358]
[1744629497532,9e-07,84809.0,84808.0,0.67995358]
[1744629499410,0.01,84820.0,84818.0,0.235799]
[1744629499648,0.01,84820.0,84819.0,0.22620775]
[1744629499874,0.01,84820.0,84819.0,0.23531273]
[1744629500112,0.01,84820.0,84819.0,0.01647119]
[1744629500328,0.01607187,84820.0,84819.0,0.25226719]
[1744629500561,0.01,84820.0,84819.0,0.25226719]
[1744629501007,0.01607187,84820.0,84819.0,0.25226719]
[1744629501211,0.01,84820.0,84819.0,0.25426719]
[1744629502147,0.25186487,84820.0,84819.0,0.01847119]
[1744629502391,0.29866487,84820.0,84819.0,0.01847119]
[1744629502564,0.29866487,84820.0,84819.0,0.01110498]
[1744629502789,0.80840641,84820.0,84819.0,0.01510498]
[1744629502980,0.81716426,84820.0,84819.0,0.01510498]
[1744629503410,0.81716426,84820.0,84819.0,0.00910498]
[1744629503755,0.81716426,84820.0,84788.0,1.10356]
[1744629503756,0.235851,84799.0,84798.0,0.00910498]
[1744629504373,0.24177789,84799.0,84798.0,0.00910498]
[1744629504947,0.24177789,84799.0,84798.0,0.001]
[1744629505215,0.235877,84790.0,84788.0,0.00046127]
[1744629505414,0.011793,84794.0,84788.0,0.00046127]
[1744629505614,0.247666,84792.0,84788.0,0.00046127]
[1744629505815,0.011793,84793.0,84788.0,0.01225527]
[1744629505987,0.247662,84793.0,84788.0,0.01225527]
[1744629506290,0.011793,84794.0,84791.0,0.011793]
[1744629506489,0.24766,84794.0,84790.0,0.011793]
[1744629506789,0.25355873,84793.0,84789.0,0.011793]
[1744629506969,0.01768873,84793.0,84790.0,0.011793]
[1744629507173,0.235879,84789.0,84788.0,0.00346127]
[1744629507378,0.011793,84791.0,84788.0,0.00146127]
[1744629507557,0.0058293,84789.0,84788.0,0.01058052]
[1744629507767,0.011793,84791.0,84788.0,0.01058052]
[1744629507970,0.0058293,84789.0,84788.0,0.01058052]
[1744629508240,0.235878,84790.0,84788.0,0.00146127]
[1744629508523,0.0058293,84789.0,84788.0,0.00046127]
[1744629509278,0.0058293,84789.0,84788.0,0.00146127]
[1744629509714,0.011793,84792.0,84788.0,0.00246127]
[1744629509910,0.247647,84798.0,84792.0,0.235869]
[1744629510145,0.247645,84799.0,84795.0,0.23586]
[1744629510489,0.247645,84799.0,84788.0,0.01325527]
[1744629510490,0.011793,84793.0,84788.0,0.01325527]
[1744629510697,0.011793,84793.0,84790.0,0.01842223]
[1744629510811,0.011793,84794.0,84791.0,0.247666]
[1744629511009,0.235863,84795.0,84791.0,0.247666]
[1744629511211,0.01185435,84805.0,84801.0,0.011792]
[1744629511457,0.247623,84806.0,84802.0,0.24763]
[1744629511832,0.247623,84806.0,84803.0,0.23584]
[1744629512050,0.235845,84802.0,84799.0,0.247643]
[1744629512251,0.235845,84802.0,84799.0,0.011792]
[1744629512467,0.247637,84802.0,84798.0,0.247645]
[1744629512931,0.235862,84796.0,84792.0,0.011793]
[1744629513120,0.011792,84798.0,84795.0,0.011793]
[1744629513283,0.011792,84800.0,84796.0,0.247652]
[1744629513482,0.011792,84800.0,84794.0,0.25428429]
[1744629513483,0.247643,84799.0,84794.0,0.01842029]
[1744629513693,0.011792,84797.0,84794.0,0.01842029]
[1744629513897,0.23586,84796.0,84794.0,0.01842029]
[1744629514295,0.011792,84800.0,84794.0,0.01842029]
[1744629514296,0.235852,84799.0,84794.0,0.01842029]
[1744629514498,0.247646,84798.0,84794.0,0.01842029]
[1744629514705,0.235862,84796.0,84794.0,0.01842029]
[1744629514877,0.34,84795.0,84794.0,0.01842029]
[1744629515079,0.3863,84795.0,84794.0,0.01842029]
[1744629515399,0.40826578,84795.0,84794.0,0.01842029]
[1744629516139,0.25782778,84795.0,84794.0,0.01842029]
[1744629516272,0.02196578,84795.0,84794.0,0.01842029]
[1744629516891,0.235862,84795.0,84794.0,0.01842029]
[1744629517324,0.34,84798.0,84794.0,0.03021329]
[1744629517535,0.011792,84803.0,84799.0,0.011792]
[1744629517737,0.34,84801.0,84798.0,0.011792]
[1744629517966,0.351792,84801.0,84798.0,0.011792]
[1744629518164,0.351791,84807.0,84803.0,0.011792]
[1744629518392,0.011792,84803.0,84800.0,0.011792]
[1744629518512,0.247636,84802.0,84799.0,0.011792]
[1744629519150,0.01179,84811.0,84805.0,0.235835]
[1744629519360,0.01179,84817.0,84805.0,0.011791]
[1744629519361,0.34,84808.0,84805.0,0.011791]
[1744629519569,0.01182738,84814.0,84813.0,0.01179]
[1744629520050,0.011789,84818.0,84814.0,0.2476]
[1744629521080,0.011791,84808.0,84805.0,0.011791]
[1744629521481,0.011791,84807.0,84798.0,0.247645]
[1744629521652,0.011791,84807.0,84802.0,0.235841]
[1744629521853,0.25289933,84806.0,84801.0,0.011792]
[1744629522072,0.00527533,84806.0,84803.0,0.247631]
[1744629522264,0.00527533,84806.0,84804.0,0.235836]
[1744629522461,0.00527533,84806.0,84805.0,0.12084154]
[1744629522661,0.01179,84814.0,84810.0,0.247611]
[1744629522844,0.587595,84816.0,84812.0,0.01179]
[1744629523038,0.01179,84815.0,84812.0,0.01179]
[1744629523282,0.00523635,84815.0,84812.0,0.01179]
[1744629523522,0.00523635,84815.0,84813.0,0.235812]
[1744629523701,0.00523635,84815.0,84812.0,0.247602]
[1744629523997,0.01179,84813.0,84810.0,0.247611]
[1744629524214,0.24104735,84814.0,84811.0,0.247607]
[1744629524411,0.00524673,84812.0,84811.0,0.247607]
[1744629524545,0.247601,84814.0,84811.0,0.247607]
[1744629524758,0.00524154,84813.0,84811.0,0.01179]
[1744629524955,0.01179,84814.0,84811.0,0.247607]
[1744629525184,0.00524154,84813.0,84811.0,0.247607]
[1744629525601,0.24105454,84813.0,84810.0,0.011791]
[1744629525781,0.01703154,84813.0,84810.0,0.247611]
[1744629526182,0.01703154,84813.0,84801.0,0.011792]
[1744629526183,0.235818,84811.0,84801.0,0.011792]
[1744629526385,0.01179,84812.0,84801.0,0.235845]
[1744629526386,0.235834,84806.0,84801.0,0.235845]
[1744629526642,0.235834,84806.0,84798.0,0.235853]
[1744629526643,0.011791,84804.0,84798.0,0.235853]
[1744629526847,0.235868,84793.0,84786.0,0.011794]
[1744629527045,0.011794,84787.0,84784.0,0.0487]
[1744629527185,0.011793,84789.0,84784.0,0.06095527]
[1744629527386,0.011793,84790.0,84788.0,0.01842225]
[1744629527588,0.247665,84792.0,84789.0,0.235879]
[1744629527787,0.235877,84790.0,84788.0,0.03021625]
[1744629528004,0.235877,84790.0,84788.0,0.011794]
[1744629528405,0.011793,84791.0,84788.0,0.011794]
[1744629528658,0.011793,84791.0,84788.0,0.247675]
[1744629528978,0.011793,84791.0,84788.0,0.013794]
[1744629529183,0.011793,84792.0,84788.0,0.249675]
[1744629529383,0.247665,84792.0,84788.0,0.011794]
[1744629529808,0.011793,84790.0,84788.0,0.002]
[1744629530006,0.011793,84791.0,84788.0,0.240881]
[1744629530224,0.247668,84791.0,84788.0,0.005]
[1744629530386,0.247666,84792.0,84788.0,0.005]
[1744629530387,0.247666,84792.0,84789.0,0.011793]
[1744629531482,0.235876,84790.0,84788.0,0.002]
[1744629531690,0.24767,84791.0,84788.0,0.002]
[1744629531691,0.011793,84791.0,84788.0,0.002]
[1744629531907,0.247659,84794.0,84791.0,0.011793]
[1744629532060,0.011792,84797.0,84791.0,0.011793]
[1744629532281,0.235864,84795.0,84792.0,0.011793]
[1744629532480,0.247659,84794.0,84791.0,0.247666]
[1744629533109,0.247659,84794.0,84791.0,0.011793]
[1744629533307,0.235869,84793.0,84790.0,0.011793]
[1744629534091,0.235869,84793.0,84791.0,0.002]
[1744629534425,0.011793,84794.0,84791.0,0.239873]
[1744629534640,0.247659,84794.0,84791.0,0.239873]
[1744629534869,0.011793,84794.0,84791.0,0.249666]
[1744629535046,0.011793,84794.0,84791.0,0.247666]
[1744629535241,0.247659,84794.0,84791.0,0.249666]
[1744629535642,0.247659,84794.0,84791.0,0.011793]
[1744629535849,0.247657,84795.0,84791.0,0.247666]
[1744629536184,0.247658,84794.0,84791.0,0.002]
[1744629536387,0.621269,84793.0,84791.0,0.004]
[1744629536592,0.74211054,84793.0,84791.0,0.002]
[1744629536798,0.46569557,84792.0,84791.0,0.002]
[1744629536999,0.48775559,84792.0,84791.0,0.004]
[1744629537230,0.48775559,84792.0,84791.0,0.002]
[1744629537432,0.49602364,84792.0,84791.0,0.002]
[1744629537810,0.50704779,84792.0,84791.0,0.002]
[1744629537993,0.011794,84787.0,84770.0,0.4187]
[1744629538192,0.57589,84785.0,84770.0,0.4187]
[1744629538697,0.60274659,84785.0,84770.0,0.4187]
[1744629539341,0.61100812,84785.0,84770.0,0.4187]
[1744629539527,0.5889481,84785.0,84770.0,0.4187]
[1744629539755,0.5889481,84785.0,84776.0,0.011795]
[1744629539938,0.5889481,84785.0,84774.0,0.2485594]
[1744629540136,0.5889481,84785.0,84774.0,0.0008444]
[1744629540346,0.58068657,84785.0,84774.0,0.0008444]
[1744629540523,0.70152811,84785.0,84774.0,0.0008444]
[1744629541348,0.73456723,84785.0,84774.0,0.0008444]
[1744629541745,0.74282455,84785.0,84774.0,0.0008444]
[1744629542507,0.72079837,84785.0,84774.0,0.0008444]
[1744629544702,0.59995683,84785.0,84778.0,0.011795]
[1744629544910,0.59995683,84785.0,84774.0,0.2367644]
[1744629545105,0.59995683,84785.0,84774.0,0.0008444]
[1744629545475,0.59169951,84785.0,84774.0,0.0008444]
[1744629546363,0.59169951,84785.0,84774.0,0.0126404]
[1744629546560,0.61369661,84785.0,84774.0,0.0008444]
[1744629547152,0.62194569,84785.0,84774.0,0.0008444]
[1744629548881,0.61369661,84785.0,84774.0,0.0008444]
[1744629550803,0.61369661,84785.0,84776.0,0.0498]
[1744629551005,0.37780661,84785.0,84778.0,0.011795]
[1744629551185,0.37780661,84785.0,84776.0,0.0498]
[1744629551386,0.35580951,84785.0,84774.0,0.0008444]
[1744629551637,0.34479657,84785.0,84774.0,0.0008444]
[1744629552562,0.37779358,84785.0,84774.0,0.0008444]
[1744629552908,0.35579557,84785.0,84774.0,0.0008444]
[1744629555248,0.59168557,84785.0,84774.0,0.0008444]
[1744629555540,0.59994152,84785.0,84774.0,0.0008444]
[1744629556434,0.72078306,84785.0,84774.0,0.0008444]
[1744629556646,0.74280763,84785.0,84774.0,0.0008444]
[1744629560646,0.62196609,84785.0,84774.0,0.2485594]
[1744629560794,0.62196609,84785.0,84774.0,0.0008444]
[1744629561817,0.59994152,84785.0,84774.0,0.0008444]
[1744629562639,0.72067,84785.0,84774.0,0.0008444]
[1744629562876,0.84151154,84785.0,84774.0,0.0008444]
[1744629563111,0.81618306,84785.0,84774.0,0.0008444]
[1744629564042,0.81618306,84785.0,84766.0,0.01927015]
[1744629564043,0.575924,84774.0,84766.0,0.01927015]
[1744629564253,0.587737,84767.0,84766.0,0.00013833]
[1744629564382,0.70857854,84767.0,84766.0,0.00013833]
[1744629564608,0.71745667,84767.0,84766.0,0.00013833]
[1744629564806,0.72424677,84767.0,84766.0,0.00013833]
[1744629565009,0.73250272,84767.0,84766.0,0.00013833]
[1744629565325,0.76556173,84767.0,84766.0,0.00013833]
[1744629565528,0.87589287,84767.0,84766.0,3.3e-07]
[1744629565724,0.84946439,84767.0,84766.0,3.3e-07]
[1744629565927,0.84946439,84767.0,84764.0,7.3e-07]
[1744629565928,0.59048685,84765.0,84764.0,7.3e-07]
[1744629566172,0.71958434,84765.0,84764.0,7.3e-07]
[1744629566304,0.73058334,84765.0,84764.0,7.3e-07]
[1744629566509,0.752629,84765.0,84764.0,7.3e-07]
[1744629568309,0.759231,84765.0,84764.0,7.3e-07]
[1744629568512,1.169129,84765.0,84764.0,7.3e-07]
[1744629570685,1.04034861,84765.0,84764.0,7.3e-07]
[1744629570903,0.70034861,84765.0,84764.0,7.3e-07]
[1744629571135,1.04034861,84765.0,84764.0,7.3e-07]
[1744629571774,1.01830295,84765.0,84764.0,7.3e-07]
[1744629574342,0.60180295,84765.0,84764.0,7.3e-07]
[1744629574802,0.72264449,84765.0,84764.0,7.3e-07]
[1744629575460,0.73718534,84765.0,84764.0,7.3e-07]
[1744629576402,0.575957,84761.0,84760.0,1.3e-07]
[1744629576607,0.70505449,84761.0,84760.0,1.3e-07]
[1744629576782,0.71170452,84761.0,84760.0,1.3e-07]
[1744629577140,1.16474896,84761.0,84760.0,1.3e-07]
[1744629577565,1.17874922,84761.0,84760.0,1.3e-07]
[1744629578181,1.2994777,84761.0,84760.0,1.3e-07]
[1744629578385,1.17209919,84761.0,84760.0,1.3e-07]
[1744629579293,1.16909919,84761.0,84760.0,1.3e-07]
[1744629579881,1.17509919,84761.0,84760.0,1.3e-07]
[1744629580336,1.17609919,84761.0,84760.0,1.3e-07]
[1744629580897,1.37305919,84761.0,84760.0,1.3e-07]
[1744629582520,1.3510556,84761.0,84760.0,1.3e-07]
[1744629583085,1.47178408,84761.0,84760.0,1.3e-07]
[1744629583911,1.49378011,84761.0,84760.0,1.3e-07]
[1744629584417,0.59051185,84756.0,84755.0,5.3e-07]
[1744629584618,1.17575339,84756.0,84755.0,7.7e-07]
[1744629584769,1.20600537,84756.0,84755.0,7.7e-07]
[1744629584973,0.59052585,84751.0,84750.0,1.7e-07]
[1744629585177,0.59053685,84747.0,84746.0,9.7e-07]
[1744629585519,0.71963434,84747.0,84746.0,9.7e-07]
[1744629585730,0.59054785,84743.0,84742.0,7.7e-07]
[1744629585918,0.71138939,84743.0,84742.0,7.7e-07]
[1744629586149,0.71964534,84743.0,84742.0,7.7e-07]
[1744629586391,0.74164137,84743.0,84742.0,7.7e-07]
[1744629586520,0.75264163,84743.0,84742.0,7.7e-07]
[1744629586944,0.76547003,84743.0,84742.0,7.7e-07]
[1744629587150,0.76347003,84743.0,84742.0,7.7e-07]
[1744629587547,0.88519851,84743.0,84742.0,7.7e-07]
[1744629587762,0.76747003,84743.0,84742.0,7.7e-07]
[1744629588939,1.18397003,84743.0,84742.0,7.7e-07]
[1744629591294,1.37509003,84743.0,84742.0,7.7e-07]
[1744629591891,1.36054918,84743.0,84742.0,7.7e-07]
[1744629597611,1.16942918,84743.0,84742.0,7.7e-07]
[1744629597825,1.14743315,84743.0,84742.0,7.7e-07]
[1744629600634,1.16946491,84743.0,84742.0,7.7e-07]
[1744629601045,1.19973179,84743.0,84742.0,7.7e-07]
[1744629601253,1.21427264,84743.0,84742.0,7.7e-07]
[1744629602170,1.21427264,84743.0,84741.0,7.7e-07]
[1744629602171,0.59055085,84742.0,84741.0,7.7e-07]
[1744629602373,0.71964834,84742.0,84741.0,5e-08]